fUST/lending_fUST_20260702
["ID","MTS","AMOUNT","RATE_DAILY","PERIOD"]
[426857182,1782961839000,-160.0,0.0002863,30]
[426857229,1782961839000,-500.0,0.0002894,7]
[426857228,1782961839000,-500.0,0.0002894,7]
[426857233,1782961839000,-762554.9928268,0.00028941,2]
[426857226,1782961839000,-156.98470936,0.00028818,30]
[426857222,1782961839000,-3000.0,0.0002878,2]
[426857218,1782961839000,-3000.0,0.0002876,2]
[426857231,1782961839000,-347.4792911,0.0002894,7]
[426857224,1782961839000,-3952.774857,0.0002879,2]
[426857220,1782961839000,-3000.0,0.0002877,2]
[426857216,1782961839000,-3000.0,0.0002875,2]
[426857214,1782961839000,-3000.0,0.0002874,2]
[426857212,1782961839000,-3000.0,0.0002873,2]
[426857206,1782961839000,-3000.0,0.000287,2]
[426857210,1782961839000,-3000.0,0.0002872,2]
[426857202,1782961839000,-3000.0,0.0002868,2]
[426857196,1782961839000,-3000.0,0.0002866,2]
[426857200,1782961839000,-3000.0,0.0002867,2]
[426857208,1782961839000,-3000.0,0.0002871,2]
[426857198,1782961839000,-504.83076829,0.00028669,7]
[426857192,1782961839000,-3000.0,0.0002864,2]
[426857188,1782961839000,-32063.31682024,0.0002863,30]
[426857204,1782961839000,-3000.0,0.0002869,2]
[426857190,1782961839000,-3000.0,0.0002863,2]
[426857194,1782961839000,-3000.0,0.0002865,2]
[426857186,1782961839000,-2531.77022359,0.0002863,30]
[426857184,1782961839000,-160.0,0.0002863,30]
[426857180,1782961839000,-417.15472785,0.0002863,30]
[426857179,1782961839000,-500.0,0.00028629,7]
[426857177,1782961839000,-500.0,0.00028629,7]
[426857112,1782961839000,-8556.41652939,0.00026994,2]
[426857169,1782961839000,-3000.0,0.0002861,2]
[426857360,1782962082000,802.22357259,0.00013,2]
[426857363,1782962288000,-160.0,0.00022057,2]
[426857364,1782962299000,-134.31550683,0.00022057,2]
[426857373,1782962361000,263.9249807,0.00027711,120]
[426857381,1782962634000,208.76,0.000287,120]
[426857382,1782962656000,-417.15472785,0.00023203,2]
[426857390,1782962946000,160.0,0.00028767,120]
[426857414,1782963031000,-188.110586,0.0002772,2]
[426857413,1782963031000,-275.2111648,0.00027666,2]
[426857412,1782963031000,-264.39842768,0.00023711,7]
[426857410,1782963031000,-83.14480523,0.00023203,2]
[426857415,1782963032000,-542.2049753,0.0002776,2]
[426857416,1782963032000,-1421.0,0.00027834,2]
[426857417,1782963032000,-731.10914806,0.000285,3]
[426857481,1782963038000,-417.15472785,0.00028766,2]
[426857441,1782963038000,-281.89085194,0.000285,3]
[426857439,1782963038000,-446.0,0.00027834,2]
[426857443,1782963038000,-428.91295494,0.00028671,2]
[426857445,1782963038000,-119.99855667,0.00028671,2]
[426857449,1782963038000,-529.76791229,0.00028671,2]
[426857451,1782963038000,-567.55273314,0.00028671,2]
[426857468,1782963038000,-374.25688871,0.00028671,2]
[426857477,1782963038000,-1202.61628164,0.00028671,2]
[426857469,1782963038000,-185.45161004,0.00028671,2]
[426857480,1782963038000,-593.44515213,0.00028671,2]
[426857447,1782963038000,-652.04476223,0.00028671,2]
[426857473,1782963038000,-169.90517418,0.00028671,2]
[426857484,1782963038000,-160.0,0.00028849,2]
[426857496,1782963038000,-500.0,0.00029041,7]
[426857493,1782963038000,-151.25598385,0.00029,15]
[426857495,1782963038000,-525.93136315,0.00029041,7]
[426857489,1782963038000,-158.93965878,0.00028976,2]
[426857487,1782963038000,-206.58827325,0.0002894,2]
[426857491,1782963038000,-223.95,0.00028978,15]
[426857502,1782963038000,-312.63399172,0.00029041,7]
[426857498,1782963038000,-500.0,0.00029041,7]
[426857471,1782963038000,-333.81289807,0.00028671,2]
[426857485,1782963038000,-160.0,0.00028849,2]
[426857500,1782963038000,-341.43456881,0.00029041,7]
[426857765,1782963040000,-500.0,0.00029041,7]
[426857760,1782963040000,-500.0,0.00029041,7]
[426857762,1782963040000,-31.12472373,0.00029041,7]
[426857764,1782963040000,-471.6443917,0.00029041,7]
[426857777,1782963040000,-503.81229214,0.00029041,7]
[426857773,1782963040000,-98.90433199,0.00029041,7]
[426857767,1782963040000,-500.0,0.00029041,7]
[426857758,1782963040000,-140.65464462,0.00029041,7]
[426857769,1782963040000,-503.40462924,0.00029041,7]
[426857771,1782963040000,-500.0,0.00029041,7]
[426857756,1782963040000,-359.34535538,0.00029041,7]
[426857775,1782963040000,-401.09566801,0.00029041,7]
[426857779,1782963040000,-500.0,0.00029041,7]
[426857754,1782963040000,-502.83209039,0.00029041,7]
[426857745,1782963040000,-500.0,0.00029041,7]
[426857750,1782963040000,-500.0,0.00029041,7]
[426857748,1782963040000,-502.74425508,0.00029041,7]
[426857752,1782963040000,-500.0,0.00029041,7]
[426857743,1782963040000,-502.39440188,0.00029041,7]
[426857740,1782963040000,-500.0,0.00029041,7]
[426857733,1782963040000,-382.21958872,0.00029041,7]
[426857739,1782963040000,-500.0,0.00029041,7]
[426857735,1782963040000,-1306.24,0.00029041,7]
[426857737,1782963040000,-1306.24,0.00029041,7]
[426857727,1782963040000,-993.60600828,0.00029041,7]
[426857729,1782963040000,-1306.24,0.00029041,7]
[426857731,1782963040000,-924.02041128,0.00029041,7]
[426857785,1782963040000,-506.07579207,0.00029041,7]
[426857746,1782963040000,-500.0,0.00029041,7]
[426857787,1782963040000,-510.79299676,0.00029041,7]
[426857824,1782963040000,-503.0349974,0.00029041,7]
[426857791,1782963040000,-500.0,0.00029041,7]
[426857842,1782963040000,-500.0,0.00029041,7]
[426857848,1782963040000,-500.0,0.00029041,7]
[426857846,1782963040000,-500.0,0.00029041,7]
[426857844,1782963040000,-500.0,0.00029041,7]
[426857852,1782963040000,-500.0,0.00029041,7]
[426857841,1782963040000,-500.0,0.00029041,7]
[426857850,1782963040000,-566.60760209,0.00029041,7]
[426857835,1782963040000,-500.0,0.00029041,7]
[426857837,1782963040000,-500.0,0.00029041,7]
[426857831,1782963040000,-2462.66,0.00029041,7]
[426857839,1782963040000,-635.14982542,0.00029041,7]
[426857833,1782963040000,-311.6096555,0.00029041,7]
[426857828,1782963040000,-2462.66,0.00029041,7]
[426857820,1782963040000,-504.49220402,0.00029041,7]
[426857789,1782963040000,-500.0,0.00029041,7]
[426857812,1782963040000,-500.0,0.00029041,7]
[426857803,1782963040000,-506.35637295,0.00029041,7]
[426857796,1782963040000,-500.0,0.00029041,7]
[426857794,1782963040000,-505.95422421,0.00029041,7]
[426857798,1782963040000,-500.0,0.00029041,7]
[426857800,1782963040000,-13.09632963,0.00029041,7]
[426857854,1782963040000,-500.0,0.00029041,7]
[426857814,1782963040000,-367.55682457,0.00029041,7]
[426857818,1782963040000,-500.0,0.00029041,7]
[426857807,1782963040000,-353.32833906,0.00029041,7]
[426857822,1782963040000,-500.0,0.00029041,7]
[426857826,1782963040000,-2462.66,0.00029041,7]
[426857805,1782963040000,-500.0,0.00029041,7]
[426857816,1782963040000,-500.0,0.00029041,7]
[426857809,1782963040000,-500.0,0.00029041,7]
[426857859,1782963041000,-166.78363913,0.00029041,7]
[426857858,1782963041000,-500.0,0.00029041,7]
[426857861,1782963041000,-500.0,0.00029041,7]
[426857856,1782963041000,-500.0,0.00029041,7]
[426857863,1782963041000,-500.0,0.00029041,7]
[426857867,1782963041000,-500.0,0.00029041,7]
[426857865,1782963041000,-500.0,0.00029041,7]
[426857871,1782963041000,-500.0,0.00029041,7]
[426857872,1782963041000,-1470.10595661,0.00029061,2]
[426857869,1782963041000,-500.0,0.00029041,7]
[426857875,1782963041000,-1924.4622599,0.00029151,2]
[426858197,1782963043000,-1148.2849989,0.00029151,2]
[426858153,1782963043000,-913.63249199,0.00029151,2]
[426858155,1782963043000,-1604.951265,0.00029151,2]
[426858554,1782963046000,-11953.62942517,0.00029151,2]
[426858550,1782963046000,-16832.05743766,0.00029151,2]
[426858608,1782963102000,175.0,0.00022,2]
[426858617,1782963167000,-160.0,0.00026258,3]
[426858648,1782964082000,3858.939446,0.000125,2]
[426858649,1782964088000,1054.99829563,0.0001,2]
[426858650,1782964098000,48916.58941893,0.00013,2]
[426858678,1782964166000,-6983.67362754,0.00021,2]
[426858679,1782964166000,-416.18592227,0.000215,2]
[426858694,1782964198000,-3000.0,0.000215,2]
[426858695,1782964209000,-3000.0,0.000215,2]
[426858696,1782964221000,-160.0,0.000215,2]
[426858707,1782964231000,-160.0,0.000215,2]
[426859301,1782964242000,-1693.17203029,0.000222,2]
[426859265,1782964242000,-3420.39667099,0.000215,2]
[426859261,1782964242000,-229.079617,0.000215,2]
[426859268,1782964242000,-2565.28311314,0.000222,2]
[426859489,1782964244000,-328.256655,0.000222,2]
[426860750,1782964255000,-2083.00171769,0.00025,2]
[426860739,1782964255000,-229.079617,0.000222,2]
[426860743,1782964255000,-273.7353051,0.000222,2]
[426860748,1782964255000,-2713.19009887,0.00025,2]
[426860744,1782964255000,-256.61526978,0.00024363,7]
[426860746,1782964255000,-1852.73789819,0.0002465,2]
[426860752,1782964255000,-643.46126834,0.00025,2]
[426860945,1782964920000,-229.079617,0.00023359,2]
[426860946,1782964931000,-229.079617,0.00023359,2]
[426860947,1782964942000,-229.079617,0.00023359,2]
[426860948,1782964953000,-229.079617,0.00023359,2]
[426860949,1782964964000,-181.77616527,0.00023359,2]
[426860950,1782964975000,-229.079617,0.00023359,2]
[426860951,1782964985000,-229.079617,0.00023359,2]
[426860955,1782965049000,362.05,0.00028767,120]
[426860957,1782965204000,-370.78854458,0.00022191,2]
[426861401,1782965438000,-7637.53701397,0.00025,2]
[426861399,1782965438000,-409.92246076,0.00024999,2]
[426861397,1782965438000,-500.0,0.00024999,2]
[426861403,1782965438000,-326.0,0.00025,5]
[426861405,1782965438000,-166.2733503,0.00025444,2]
[426861406,1782965438000,-1000.0,0.000255,2]
[426861371,1782965438000,-188.110586,0.00024269,2]
[426861395,1782965438000,-160.0,0.00024792,2]
[426861391,1782965438000,-790.31343501,0.00024433,2]
[426861388,1782965438000,-1150.03067988,0.00024433,2]
[426861373,1782965438000,-686.23345871,0.00024433,2]
[426861368,1782965438000,-797.7039022,0.0002417,2]
[426861408,1782965438000,-425.03859864,0.00025946,2]
[426861393,1782965438000,-3877.0354594,0.00024506,2]
[426861366,1782965438000,-215.37779809,0.00021081,2]
[426861410,1782965438000,-663.45868756,0.00025946,2]
[426861414,1782965438000,-536.14032805,0.00026,2]
[426861412,1782965438000,-209.26303547,0.00025999,2]
[426861440,1782965438000,-1000.0,0.00027739,5]
[426861438,1782965438000,-46500.5337114,0.000275,2]
[426861436,1782965438000,-173.93845682,0.00027397,7]
[426861432,1782965438000,-156.89218656,0.00026698,5]
[426861426,1782965438000,-534.4834102,0.00026431,2]
[426861434,1782965438000,-468.954612,0.00027241,2]
[426861428,1782965438000,-51603.04341467,0.00026444,2]
[426861430,1782965438000,-8669.73390194,0.00026444,2]
[426861422,1782965438000,-468.954612,0.0002614,2]
[426861416,1782965438000,-19900.0,0.00026,2]
[426861418,1782965438000,-5315.7039677,0.0002604,2]
[426861420,1782965438000,-176.94445853,0.0002604,2]
[426861424,1782965438000,-196.95858748,0.0002616,2]
[426861449,1782965439000,-200.0,0.00028011,2]
[426861464,1782965439000,-314.59,0.0002844,4]
[426861460,1782965439000,-352.23,0.00028341,2]
[426861462,1782965439000,-468.954612,0.00028341,2]
[426861451,1782965439000,-160.0,0.00028146,2]
[426861453,1782965439000,-417.15472785,0.00028146,2]
[426861443,1782965439000,-1150.031,0.00027887,2]
[426861441,1782965439000,-248.171,0.00027887,2]
[426861447,1782965439000,-206.3286,0.000279,2]
[426861445,1782965439000,-1854.4,0.00027887,2]
[426861466,1782965439000,-160.0,0.0002844,4]
[426861455,1782965439000,-160.0,0.00028146,2]
[426861457,1782965439000,-801.70012839,0.000282,2]
[426861468,1782965439000,-5315.70396766,0.00028546,2]
[426861486,1782965439000,-194.49957525,0.0002874,2]
[426861459,1782965439000,-300.0,0.00028341,5]
[426861471,1782965439000,-357.197239,0.00028622,2]
[426861491,1782965439000,-221.96,0.00028988,2]
[426861493,1782965439000,-696.25973047,0.00029,2]
[426861490,1782965439000,-357.9462704,0.0002876,2]
[426861487,1782965439000,-24904.51546639,0.0002876,2]
[426861484,1782965439000,-500.0,0.0002874,2]
[426861492,1782965439000,-1472.15601468,0.00028989,6]
[426861477,1782965439000,-200.97621715,0.0002874,2]
[426861482,1782965439000,-1003.87620465,0.0002874,2]
[426861479,1782965439000,-361.75719087,0.0002874,2]
[426861480,1782965439000,-643.12389487,0.0002874,2]
[426861473,1782965439000,-200.0,0.0002867,2]
[426861475,1782965439000,-95386.02003282,0.0002871,2]
[426861469,1782965439000,-3194.614355,0.000286,2]
[426861878,1782965444000,-41.19872717,0.00027758,2]
[426863037,1782965682000,10429.21572026,0.00015,2]
[426863047,1782966450000,500.0,0.000287,120]
[426863050,1782966571000,500.0,0.000287,120]
[426863051,1782966593000,158.0,0.0002876,120]
[426863052,1782966623000,500.0,0.000287,120]
[426863069,1782966632000,-446.83656383,0.00025938,2]
[426863071,1782966632000,-1083.7548331,0.00027559,2]
[426863070,1782966632000,-160.0,0.00027321,2]
[426863072,1782966632000,-455.52644252,0.00027887,2]
[426863073,1782966632000,-170.20443837,0.00028169,2]
[426863076,1782966632000,-248.70754062,0.00028215,2]
[426863079,1782966632000,-747.0,0.00028322,2]
[426863074,1782966632000,-160.0,0.00028169,2]
[426863078,1782966632000,-446.0,0.00028322,2]
[426863075,1782966632000,-160.0,0.00028169,2]
[426863080,1782966632000,-202.928,0.00028322,2]
[426863081,1782966632000,-1009.48899276,0.00028322,2]
[426863077,1782966632000,-793.5531888,0.00028215,2]
[426863098,1782966638000,-411.51100724,0.00028322,2]
[426863096,1782966638000,-409.53244171,0.00025938,2]
[426863100,1782966638000,-2216.0,0.00028322,2]
[426863101,1782966638000,-209.04143986,0.000285,2]
[426863103,1782966639000,-10144.02958725,0.000285,30]
[426863255,1782966644000,-3073.83934201,0.000285,30]
[426863254,1782966644000,-2889.18085701,0.000285,30]
[426863253,1782966644000,-281.05019988,0.000285,30]
[426863264,1782966647000,-8892.80388113,0.000285,30]
[426863265,1782966683000,200.0,0.000287,120]
[426863268,1782966908000,2037.81,0.00028767,120]
[426863282,1782967544000,-98831.69865998,0.000285,30]
[426863281,1782967544000,-160.0,0.00028312,2]
[426863289,1782967704000,3347.66240879,0.000125,2]
[426863290,1782967715000,181.88686226,0.00015,2]
[426863291,1782967725000,13115.00458758,0.00012,2]
[426863292,1782967752000,-615.908,0.0002,20]
[426863296,1782967768000,-1106.34192411,0.0002,20]
[426863297,1782967831000,-1472.15601468,0.000215,2]
[426863812,1782967842000,-4380.66387185,0.000215,2]
[426863807,1782967842000,-696.25973047,0.000215,2]
[426863817,1782967842000,-160.0,0.00025713,3]
[426863819,1782967842000,-160.0,0.00027349,4]
[426863828,1782967842000,-500.0,0.00028321,2]
[426863823,1782967842000,-500.0,0.00028321,2]
[426863825,1782967842000,-500.0,0.00028321,2]
[426863821,1782967842000,-500.0,0.00028321,2]
[426863831,1782967842000,-525.91619621,0.00028321,2]
[426863835,1782967842000,-150.344,0.00028322,2]
[426863857,1782967842000,-446.0,0.00028322,2]
[426863859,1782967842000,-1026.15601468,0.000285,30]
[426863841,1782967842000,-43085.71886476,0.000285,30]
[426863814,1782967842000,-1063.46310152,0.00024,2]
[426863837,1782967842000,-747.0,0.00028322,2]
[426863833,1782967842000,-1846.0,0.00028322,2]
[426863839,1782967842000,-202.928,0.00028322,2]
[426863829,1782967842000,-431.4859538,0.00028321,2]
[426863862,1782967843000,-476.10863222,0.000285,30]
[426864440,1782967847000,-10999.07762889,0.000285,30]
[426864445,1782967847000,-2481.29351779,0.000285,30]
[426865151,1782968164000,-151.0,0.00020855,2]
[426865153,1782968217000,-200.97621715,0.000215,2]
[426865154,1782968230000,-25.46307989,0.000215,2]
[426865158,1782968472000,-156.0,0.00022,2]
[426865333,1782968803000,-550.49,0.0002925,120]
[426865334,1782968803000,-674.5097747,0.0002925,120]
[426865335,1782968803000,-977.84075063,0.0002925,120]
[426865336,1782968803000,-1537.62614152,0.0002925,120]
[426865338,1782968803000,-402.11972795,0.0002925,120]
[426865339,1782968803000,-1023.75021782,0.0002925,120]
[426865340,1782968803000,-1008.2552603,0.0002925,120]
[426865341,1782968803000,-644.0,0.0002925,120]
[426865337,1782968803000,-819.69422169,0.0002925,120]
[426870007,1782969031000,-156.0,0.00026225,2]
[426869998,1782969031000,-151.8,0.00022,3]
[426869999,1782969031000,-156.0,0.00022,2]
[426870000,1782969031000,-156.0,0.00023014,7]
[426870009,1782969031000,-190.02,0.00027782,2]
[426870008,1782969031000,-188.65,0.00027567,2]
[426870002,1782969031000,-173.40445142,0.00025641,2]
[426869997,1782969031000,-156.0,0.000219,2]
[426870010,1782969031000,-47.81019752,0.00027804,2]
[426870003,1782969031000,-181.36565267,0.000257,2]
[426870004,1782969031000,-326.4581748,0.000257,2]
[426870017,1782969031000,-1846.0,0.00028322,2]
[426870001,1782969031000,-98.93554858,0.00025641,2]
[426870006,1782969031000,-905.92143506,0.000257,2]
[426870020,1782969031000,-692.80529833,0.000285,30]
[426870018,1782969031000,-8587.06925088,0.000285,30]
[426870019,1782969031000,-2214.14323692,0.000285,30]
[426870013,1782969031000,-164.24,0.00027953,2]
[426870015,1782969031000,-1434.11224341,0.00028,2]
[426870016,1782969031000,-279.872,0.00028322,2]
[426870011,1782969031000,-150.49648168,0.00027804,2]
[426870012,1782969031000,-150.2235009,0.0002795,2]
[426870005,1782969031000,-580.37008853,0.000257,2]
[426870014,1782969031000,-173.41,0.00027954,2]
[426870080,1782969038000,-634.9554491,0.000285,30]
[426870078,1782969038000,-696.25973047,0.000285,30]
[426870332,1782969043000,-52.26124716,0.000219,2]
[426870410,1782969508000,50000.0,0.0002925,120]
[426870413,1782969558000,-151.0,0.0002134,2]
[426870634,1782970030000,-250.6836482,0.00027755,2]
[426870635,1782970030000,-174.17804988,0.00027973,2]
[426870636,1782970030000,-163.59,0.00028002,2]
[426870639,1782970030000,-174.85,0.00028213,2]
[426870633,1782970030000,-157.0,0.00022,2]
[426870642,1782970030000,-177.41592269,0.00028299,2]
[426870637,1782970030000,-163.73,0.00028038,2]
[426870643,1782970030000,-300.0,0.00028299,2]
[426870638,1782970030000,-164.04,0.00028112,2]
[426870641,1782970030000,-455.55781544,0.00028222,2]
[426870644,1782970030000,-143685.14036001,0.000283,2]
[426870640,1782970030000,-3986.77797578,0.00028222,2]
[426871297,1782970238000,-201.77911713,0.00028322,2]
[426871299,1782970238000,-40132.88329845,0.000285,30]
[426871293,1782970238000,-152500.95622643,0.000283,2]
[426871289,1782970238000,-320.04393451,0.00025,14]
[426871291,1782970238000,-3488.43072879,0.00028222,2]
[426871295,1782970238000,-212.81595429,0.00028322,2]
[426872367,1782970247000,-608.0,0.000285,30]
[426872364,1782970247000,-16650.329308,0.000285,30]
[426874493,1782970367000,-151.0,0.00027718,2]
[426874498,1782970545000,-221.96,0.0002244,7]
[426874499,1782970556000,-21.44504493,0.0002244,7]
[426874501,1782970609000,-357.9462704,0.00023004,2]
[426874504,1782970620000,-142.0537296,0.00023004,2]
[426874506,1782970673000,-361.75719087,0.00023004,2]
[426874507,1782970684000,-138.24280913,0.00023004,2]
[426874508,1782970737000,-151.0,0.00022314,2]
[426874509,1782970791000,-500.0,0.00023004,2]
[426874510,1782970803000,-96.74330424,0.00023004,2]
[426874511,1782970856000,-1003.87620465,0.00023005,2]
[426874521,1782971188000,-643.12389487,0.00023005,2]
[426874522,1782971198000,-643.12389487,0.00023005,2]
[426874523,1782971209000,-194.49957525,0.00023005,2]
[426874524,1782971220000,-194.49957525,0.00023005,2]
[426874525,1782971230000,-200.0,0.00023005,2]
[426874526,1782971241000,-200.0,0.00023005,2]
[426874527,1782971252000,-357.197239,0.00023005,2]
[426874530,1782971264000,-357.197239,0.00023005,2]
[426874541,1782971297000,625.76471595,0.000125,2]
[426874549,1782971365000,-156.8,0.000215,2]
[426874707,1782971438000,-579.9062704,0.000283,2]
[426874684,1782971438000,-2011.61574515,0.000215,2]
[426874686,1782971438000,-182.63266104,0.00025035,2]
[426874688,1782971438000,-328.73878988,0.00026857,2]
[426874685,1782971438000,-8683.90585398,0.00023005,2]
[426874689,1782971438000,-221.96,0.00027075,2]
[426874687,1782971438000,-2243.52417058,0.00026,30]
[426874690,1782971438000,-249.98788247,0.00027349,2]
[426874691,1782971438000,-249.98788247,0.00027349,2]
[426874693,1782971438000,-249.98788247,0.00027349,2]
[426874692,1782971438000,-249.98788247,0.00027349,2]
[426874706,1782971438000,-167286.31478968,0.000283,2]
[426874702,1782971438000,-500.0,0.00028299,7]
[426874694,1782971438000,-249.98788247,0.00027349,2]
[426874696,1782971438000,-249.98788247,0.00027897,2]
[426874695,1782971438000,-584.42451534,0.00027768,2]
[426874698,1782971438000,-3052.3768877,0.000282,2]
[426874697,1782971438000,-425.18729442,0.000282,2]
[426874699,1782971438000,-1141.408462,0.00028293,2]
[426874700,1782971438000,-225.61284971,0.00028299,2]
[426874701,1782971438000,-500.0,0.00028299,7]
[426874704,1782971438000,-630.84032745,0.00028299,2]
[426874705,1782971438000,-11506.12749269,0.000283,2]
[426874703,1782971438000,-403.86042724,0.00028299,7]
[426874708,1782971439000,-2958.64459407,0.000283,2]
[426874747,1782971446000,-1223.560044,0.000283,2]
[426874748,1782971446000,-4444.07639243,0.000283,2]
[426874749,1782971447000,-8554.25207713,0.000283,2]
[426874782,1782971987000,-151.0,0.00021416,2]
[426874790,1782972300000,-151.0,0.00020773,2]
[426874791,1782972313000,-151.0,0.00021416,2]
[426874793,1782972443000,-227.43223956,0.00026208,2]
[426874792,1782972443000,-243.40504493,0.00023465,7]
[426874876,1782972639000,-174.99151773,0.00027198,2]
[426874878,1782972639000,-174.99151773,0.00027746,2]
[426874867,1782972639000,-160.0,0.00026258,3]
[426874880,1782972639000,-500.0,0.00027999,2]
[426874871,1782972639000,-174.99151773,0.00027198,2]
[426874882,1782972639000,-500.0,0.00027999,2]
[426874884,1782972639000,-437.06897382,0.00027999,2]
[426874874,1782972639000,-174.99151773,0.00027198,2]
[426874872,1782972639000,-174.99151773,0.00027198,2]
[426874886,1782972639000,-148.13529276,0.00028,2]
[426874869,1782972639000,-174.99151773,0.00027198,2]
[426875147,1782972648000,-86.81714161,0.00028,2]
[426875155,1782973559000,-151.0,0.00021872,2]
[426875163,1782973640000,-153.11757802,0.00027057,2]
[426875158,1782973640000,-151.0,0.0002058,2]
[426875160,1782973640000,-153.11757802,0.00027057,2]
[426875162,1782973640000,-153.11757802,0.00027057,2]
[426875161,1782973640000,-153.11757802,0.00027057,2]
[426875159,1782973640000,-151.0,0.00021216,2]
[426875164,1782973640000,-153.11757802,0.00027057,2]
[426875166,1782973640000,-153.11757802,0.00027605,2]
[426875167,1782973640000,-400.0,0.00027786,60]
[426875168,1782973640000,-400.0,0.00027786,60]
[426875169,1782973640000,-63.0888464,0.00027999,2]
[426875165,1782973640000,-187.5,0.00027397,2]
[426875171,1782973743000,5000.0,0.0001266,2]
[426875568,1782973847000,-132.52183811,0.00027057,2]
[426875567,1782973847000,-153.11757802,0.00027057,2]
[426875570,1782973893000,280.99423249,0.0001,2]
[426875571,1782973948000,-323.96,0.00025704,2]
[426875572,1782973965000,-323.96,0.00026155,2]
[426875576,1782974493000,298.0,0.00029248,120]
[426875583,1782974833000,-194.38764819,0.00025451,2]
[426875584,1782974833000,-194.49946332,0.00026812,2]
[426875586,1782974833000,-155.69204551,0.00026964,2]
[426875587,1782974833000,-155.69204551,0.00026964,2]
[426875588,1782974833000,-155.69204551,0.00026964,2]
[426875589,1782974833000,-155.69204551,0.00026964,2]
[426875590,1782974833000,-948.71797667,0.00027412,2]
[426875585,1782974833000,-155.69204551,0.00026964,2]
[426875597,1782974915000,1429.78087909,7.6e-05,2]
[426875600,1782974962000,-321.33772513,0.00021,5]
[426875601,1782974962000,-156.8,0.000215,2]
[426875655,1782975031000,-300.0,0.00027498,2]
[426875656,1782975031000,-4026.95787752,0.00027499,2]
[426875658,1782975031000,-157.9289948,0.00027499,2]
[426875660,1782975031000,-500.0,0.00027499,2]
[426875667,1782975031000,-380.28901206,0.00027499,2]
[426875664,1782975031000,-279.77971955,0.00027499,2]
[426875668,1782975031000,-407.66685554,0.000275,2]
[426875671,1782975031000,-922.32790023,0.000275,2]
[426875662,1782975031000,-220.22028045,0.00027499,2]
[426875644,1782975031000,-164.5,0.00027,7]
[426875648,1782975031000,-1412.44337946,0.000274,2]
[426875653,1782975031000,-151.70252429,0.00027412,2]
[426875637,1782975031000,-151.70252429,0.00026922,2]
[426875635,1782975031000,-151.70252429,0.00026922,2]
[426875640,1782975031000,-151.70252429,0.00026922,2]
[426875651,1782975031000,-1139.79665022,0.000274,2]
[426875639,1782975031000,-151.70252429,0.00026922,2]
[426875642,1782975031000,-164.5,0.00027,10]
[426875646,1782975031000,-164.5,0.00027,2]
[426875778,1782975038000,-337.50753783,0.000275,2]
[426875874,1782975040000,-51.31074826,0.000275,2]
[426875873,1782975040000,-753.1498694,0.000275,2]
[426875872,1782975040000,-380.3810208,0.000275,2]
[426875882,1782975043000,-1020.06874419,0.000275,2]
[426875883,1782975043000,-1321.82581294,0.000275,2]
[426875896,1782975046000,-235.11836842,0.000275,2]
[426876037,1782975104000,400.0,0.000284,120]
[426876081,1782975128000,142.17653824,0.00025303,2]
[426876087,1782975177000,1310.0,0.000284,120]
[426876155,1782975349000,5000.0,0.000285,120]
[426876158,1782975404000,5000.0,0.000287,120]
[426876157,1782975404000,-151.0,0.00020537,2]
[426876160,1782975419000,-151.0,0.00019837,14]
[426876164,1782975431000,390000.0,0.00028767,120]
[426876163,1782975431000,-174.34,0.00019837,14]
[426876166,1782975442000,-97.77717779,0.00019837,14]
[426876168,1782975495000,-172.97,0.00020537,2]
[426876169,1782975516000,3100.0,0.00029248,120]
[426876170,1782975549000,-323.97,0.00021077,2]
[426876172,1782975602000,-323.97,0.00021564,2]